fUST/lending_fUST_20260610
["ID","MTS","AMOUNT","RATE_DAILY","PERIOD"]
[424676520,1781043040000,-462.91324093,0.00015616,2]
[424676529,1781043040000,-500.0,0.00015626,2]
[424676524,1781043040000,-717.36791598,0.00015616,2]
[424676522,1781043040000,-398.5377311,0.00015616,2]
[424676503,1781043040000,-500.0,0.00015615,2]
[424676476,1781043040000,-500.0,0.00015615,2]
[424676448,1781043040000,-436.25863458,0.00015473,2]
[424676478,1781043040000,-500.0,0.00015615,2]
[424676411,1781043040000,-209.07600213,0.00015325,2]
[424676422,1781043040000,-153.37198363,0.00015472,2]
[424676426,1781043040000,-225.24035897,0.00015472,2]
[424676424,1781043040000,-154.7536359,0.00015472,2]
[424676415,1781043040000,-388.52829523,0.00015471,2]
[424676428,1781043040000,-189.04167956,0.00015473,2]
[424676432,1781043040000,-167.95419015,0.00015473,2]
[424676413,1781043040000,-2620.11485148,0.00015373,2]
[424676430,1781043040000,-319.90147616,0.00015473,2]
[424676417,1781043040000,-180.22648281,0.00015471,2]
[424676420,1781043040000,-218.12931729,0.00015472,2]
[424676433,1781043040000,-306.74396726,0.00015473,2]
[424676418,1781043040000,-205.69855637,0.00015471,2]
[424676437,1781043040000,-271.48487524,0.00015473,2]
[424676471,1781043040000,-500.0,0.00015615,2]
[424676439,1781043040000,-179.03379721,0.00015473,2]
[424676435,1781043040000,-294.20275486,0.00015473,2]
[424676443,1781043040000,-460.77065318,0.00015473,2]
[424676444,1781043040000,-294.16687456,0.00015473,2]
[424676446,1781043040000,-528.65089282,0.00015473,2]
[424676455,1781043040000,-456.70042606,0.00015473,2]
[424676453,1781043040000,-404.62845797,0.00015473,2]
[424676451,1781043040000,-489.7974618,0.00015473,2]
[424676450,1781043040000,-211.24791379,0.00015473,2]
[424676526,1781043040000,-1275.32073952,0.00015616,2]
[424676456,1781043040000,-551.63249292,0.00015473,2]
[424676469,1781043040000,-500.0,0.00015615,2]
[424676474,1781043040000,-500.0,0.00015615,2]
[424676472,1781043040000,-500.0,0.00015615,2]
[424676458,1781043040000,-500.0,0.00015473,2]
[424676441,1781043040000,-251.20024137,0.00015473,2]
[424676531,1781043040000,-159.95073808,0.00015627,2]
[424676487,1781043040000,-500.0,0.00015615,2]
[424676538,1781043040000,-418.15200425,0.00015627,2]
[424676594,1781043040000,-314.05410148,0.0001588,2]
[424676599,1781043040000,-151.5,0.0001588,2]
[424676601,1781043040000,-151.5,0.0001588,2]
[424676596,1781043040000,-500.0,0.0001588,2]
[424676603,1781043040000,-151.5,0.0001588,2]
[424676610,1781043040000,-150.386,0.00015987,2]
[424676608,1781043040000,-150.138,0.00015987,2]
[424676606,1781043040000,-182.95349713,0.0001588,2]
[424676612,1781043040000,-500.0,0.00016021,2]
[424676614,1781043040000,-500.0,0.00016111,2]
[424676605,1781043040000,-151.5,0.0001588,2]
[424676624,1781043040000,-151.0,0.00016152,2]
[424676615,1781043040000,-151.0,0.00016152,2]
[424676621,1781043040000,-151.0,0.00016152,2]
[424676622,1781043040000,-151.0,0.00016152,2]
[424676626,1781043040000,-151.0,0.00016152,2]
[424676617,1781043040000,-151.0,0.00016152,2]
[424676643,1781043040000,-151.0,0.00016152,2]
[424676641,1781043040000,-151.0,0.00016152,2]
[424676533,1781043040000,-201.12205778,0.00015627,2]
[424676638,1781043040000,-151.0,0.00016152,2]
[424676646,1781043040000,-151.0,0.00016152,2]
[424676645,1781043040000,-151.0,0.00016152,2]
[424676598,1781043040000,-524.64849091,0.0001588,2]
[424676639,1781043040000,-151.0,0.00016152,2]
[424676634,1781043040000,-151.0,0.00016152,2]
[424676633,1781043040000,-151.0,0.00016152,2]
[424676627,1781043040000,-151.0,0.00016152,2]
[424676631,1781043040000,-151.0,0.00016152,2]
[424676629,1781043040000,-151.0,0.00016152,2]
[424676619,1781043040000,-151.0,0.00016152,2]
[424676636,1781043040000,-151.0,0.00016152,2]
[424676592,1781043040000,-500.0,0.0001588,2]
[424676648,1781043040000,-151.0,0.00016152,2]
[424676587,1781043040000,-500.0,0.0001588,2]
[424676535,1781043040000,-193.0323335,0.00015627,2]
[424676589,1781043040000,-500.0,0.0001588,2]
[424676540,1781043040000,-187.78908905,0.00015627,2]
[424676551,1781043040000,-500.0,0.0001588,2]
[424676552,1781043040000,-151.5,0.0001588,2]
[424676549,1781043040000,-500.0,0.0001588,2]
[424676544,1781043040000,-500.0,0.00015747,2]
[424676542,1781043040000,-249.3918,0.00015747,2]
[424676554,1781043040000,-500.0,0.0001588,2]
[424676548,1781043040000,-444.0,0.00015833,2]
[424676546,1781043040000,-186.0,0.00015833,2]
[424676556,1781043040000,-209.71611797,0.0001588,2]
[424676559,1781043040000,-151.5,0.0001588,2]
[424676561,1781043040000,-250.28998332,0.0001588,2]
[424676564,1781043040000,-500.0,0.0001588,2]
[424676536,1781043040000,-213.67866084,0.00015627,2]
[424676563,1781043040000,-175.4911037,0.0001588,2]
[424676558,1781043040000,-500.0,0.0001588,2]
[424676585,1781043040000,-500.0,0.0001588,2]
[424676582,1781043040000,-572.7054161,0.0001588,2]
[424676580,1781043040000,-500.0,0.0001588,2]
[424676583,1781043040000,-500.0,0.0001588,2]
[424676590,1781043040000,-500.0,0.0001588,2]
[424676576,1781043040000,-500.0,0.0001588,2]
[424676573,1781043040000,-500.0,0.0001588,2]
[424676575,1781043040000,-500.0,0.0001588,2]
[424676568,1781043040000,-500.0,0.0001588,2]
[424676578,1781043040000,-500.0,0.0001588,2]
[424676569,1781043040000,-162.15374514,0.0001588,2]
[424676566,1781043040000,-500.0,0.0001588,2]
[424676571,1781043040000,-500.0,0.0001588,2]
[424676732,1781043041000,-500.0,0.00016438,2]
[424676731,1781043041000,-500.0,0.00016438,2]
[424676721,1781043041000,-752.5,0.00016438,2]
[424676727,1781043041000,-500.0,0.00016438,2]
[424676725,1781043041000,-1042.0573,0.00016438,2]
[424676714,1781043041000,-500.0,0.00016438,2]
[424676717,1781043041000,-500.0,0.00016438,2]
[424676719,1781043041000,-3134.63587,0.00016438,2]
[424676723,1781043041000,-500.0,0.00016438,2]
[424676712,1781043041000,-500.0,0.00016438,2]
[424676706,1781043041000,-500.0,0.00016438,2]
[424676716,1781043041000,-500.0,0.00016438,2]
[424676749,1781043041000,-500.0,0.00016438,2]
[424676742,1781043041000,-500.0,0.00016438,2]
[424676734,1781043041000,-500.0,0.00016438,2]
[424676738,1781043041000,-500.0,0.00016438,2]
[424676736,1781043041000,-500.0,0.00016438,2]
[424676744,1781043041000,-500.0,0.00016438,2]
[424676745,1781043041000,-500.0,0.00016438,2]
[424676751,1781043041000,-500.0,0.00016438,2]
[424676740,1781043041000,-500.0,0.00016438,2]
[424676747,1781043041000,-500.0,0.00016438,2]
[424676753,1781043041000,-606.99,0.00016438,2]
[424676759,1781043041000,-500.0,0.00016438,2]
[424676757,1781043041000,-500.0,0.00016438,2]
[424676755,1781043041000,-500.0,0.00016438,2]
[424676710,1781043041000,-500.0,0.00016438,2]
[424676762,1781043041000,-500.0,0.00016438,2]
[424676729,1781043041000,-500.0,0.00016438,2]
[424676708,1781043041000,-306.19227092,0.00016438,2]
[424676678,1781043041000,-500.0,0.00016428,2]
[424676702,1781043041000,-18620.150434,0.00016438,2]
[424676761,1781043041000,-500.0,0.00016438,2]
[424676650,1781043041000,-500.0,0.00016163,2]
[424676651,1781043041000,-500.0,0.00016214,2]
[424676653,1781043041000,-356.8499505,0.00016295,2]
[424676657,1781043041000,-500.0,0.00016328,2]
[424676659,1781043041000,-1253.22899376,0.00016338,2]
[424676655,1781043041000,-302.0,0.00016301,3]
[424676663,1781043041000,-309.06192575,0.00016387,2]
[424676661,1781043041000,-309.0213279,0.0001635,2]
[424676667,1781043041000,-1253.22899373,0.00016407,2]
[424676674,1781043041000,-151.0,0.00016427,2]
[424676665,1781043041000,-309.36649669,0.00016387,2]
[424676672,1781043041000,-500.0,0.00016424,2]
[424676704,1781043041000,-500.0,0.00016438,2]
[424676669,1781043041000,-512.21548,0.00016415,2]
[424676676,1781043041000,-500.0,0.00016428,2]
[424676680,1781043041000,-555.958705,0.00016428,2]
[424676682,1781043041000,-527.82431953,0.00016428,2]
[424676689,1781043041000,-500.0,0.00016437,2]
[424676687,1781043041000,-500.0,0.00016437,2]
[424676695,1781043041000,-500.0,0.00016437,2]
[424676685,1781043041000,-500.0,0.00016437,2]
[424676691,1781043041000,-500.0,0.00016437,2]
[424676693,1781043041000,-500.0,0.00016437,2]
[424676683,1781043041000,-500.0,0.00016437,2]
[424676697,1781043041000,-500.0,0.00016437,2]
[424676698,1781043041000,-596.88254779,0.00016437,2]
[424676700,1781043041000,-3105.6604406,0.00016438,2]
[424676670,1781043041000,-356.20590579,0.00016416,2]
[424676774,1781043041000,-151.0,0.00016438,2]
[424676848,1781043041000,-500.0,0.00016438,2]
[424676768,1781043041000,-500.0,0.00016438,2]
[424676842,1781043041000,-500.0,0.00016438,2]
[424676834,1781043041000,-583.91526967,0.00016438,2]
[424676838,1781043041000,-500.0,0.00016438,2]
[424676836,1781043041000,-500.0,0.00016438,2]
[424676844,1781043041000,-500.0,0.00016438,2]
[424676846,1781043041000,-500.0,0.00016438,2]
[424676859,1781043041000,-500.0,0.00016438,2]
[424676857,1781043041000,-500.0,0.00016438,2]
[424676863,1781043041000,-1444.43,0.00016438,2]
[424676864,1781043041000,-500.0,0.00016438,2]
[424676861,1781043041000,-684.17,0.00016438,2]
[424676850,1781043041000,-411.85307051,0.00016438,2]
[424676868,1781043041000,-500.0,0.00016438,2]
[424676840,1781043041000,-500.0,0.00016438,2]
[424676854,1781043041000,-500.0,0.00016438,2]
[424676855,1781043041000,-500.0,0.00016438,2]
[424676870,1781043041000,-500.0,0.00016438,2]
[424676871,1781043041000,-500.0,0.00016438,2]
[424676882,1781043041000,-500.0,0.00016438,2]
[424676884,1781043041000,-500.0,0.00016438,2]
[424676886,1781043041000,-500.0,0.00016438,2]
[424676888,1781043041000,-500.0,0.00016438,2]
[424676880,1781043041000,-500.0,0.00016438,2]
[424676875,1781043041000,-500.0,0.00016438,2]
[424676873,1781043041000,-500.0,0.00016438,2]
[424676877,1781043041000,-500.0,0.00016438,2]
[424676879,1781043041000,-594.16118873,0.00016438,2]
[424676776,1781043041000,-500.0,0.00016438,2]
[424676866,1781043041000,-500.0,0.00016438,2]
[424676824,1781043041000,-829.68,0.00016438,2]
[424676852,1781043041000,-500.0,0.00016438,2]
[424676828,1781043041000,-500.0,0.00016438,2]
[424676764,1781043041000,-500.0,0.00016438,2]
[424676830,1781043041000,-500.0,0.00016438,2]
[424676766,1781043041000,-668.56,0.00016438,2]
[424676770,1781043041000,-151.0,0.00016438,2]
[424676772,1781043041000,-500.0,0.00016438,2]
[424676784,1781043041000,-500.0,0.00016438,2]
[424676783,1781043041000,-500.0,0.00016438,2]
[424676788,1781043041000,-500.0,0.00016438,2]
[424676790,1781043041000,-500.0,0.00016438,2]
[424676792,1781043041000,-605.39,0.00016438,2]
[424676796,1781043041000,-500.0,0.00016438,2]
[424676794,1781043041000,-500.0,0.00016438,2]
[424676821,1781043041000,-184.53395573,0.00016438,2]
[424676802,1781043041000,-180.63510706,0.00016438,2]
[424676786,1781043041000,-500.0,0.00016438,2]
[424676833,1781043041000,-500.0,0.00016438,2]
[424676823,1781043041000,-543.13,0.00016438,2]
[424676808,1781043041000,-500.0,0.00016438,2]
[424676826,1781043041000,-575.94,0.00016438,2]
[424676815,1781043041000,-500.0,0.00016438,2]
[424676817,1781043041000,-500.0,0.00016438,2]
[424676800,1781043041000,-610.8,0.00016438,2]
[424676813,1781043041000,-500.0,0.00016438,2]
[424676809,1781043041000,-500.0,0.00016438,2]
[424676806,1781043041000,-500.0,0.00016438,2]
[424676819,1781043041000,-409.6554965,0.00016438,2]
[424676804,1781043041000,-500.0,0.00016438,2]
[424676798,1781043041000,-500.0,0.00016438,2]
[424676811,1781043041000,-500.0,0.00016438,2]
[424676973,1781043042000,-500.0,0.00016438,2]
[424676964,1781043042000,-500.0,0.00016438,2]
[424676972,1781043042000,-500.0,0.00016438,2]
[424676966,1781043042000,-500.0,0.00016438,2]
[424676968,1781043042000,-500.0,0.00016438,2]
[424676962,1781043042000,-500.0,0.00016438,2]
[424676959,1781043042000,-442.22752325,0.00016438,2]
[424676944,1781043042000,-500.0,0.00016438,2]
[424676948,1781043042000,-500.0,0.00016438,2]
[424676946,1781043042000,-500.0,0.00016438,2]
[424676940,1781043042000,-500.0,0.00016438,2]
[424676942,1781043042000,-789.91,0.00016438,2]
[424676970,1781043042000,-500.0,0.00016438,2]
[424676961,1781043042000,-500.0,0.00016438,2]
[424676983,1781043042000,-540.69340715,0.00016438,2]
[424677005,1781043042000,-500.0,0.00016438,2]
[424676981,1781043042000,-500.0,0.00016438,2]
[424676986,1781043042000,-500.0,0.00016438,2]
[424676975,1781043042000,-500.0,0.00016438,2]
[424676984,1781043042000,-500.0,0.00016438,2]
[424676977,1781043042000,-500.0,0.00016438,2]
[424676988,1781043042000,-500.0,0.00016438,2]
[424676990,1781043042000,-500.0,0.00016438,2]
[424676994,1781043042000,-500.0,0.00016438,2]
[424676997,1781043042000,-500.0,0.00016438,2]
[424677010,1781043042000,-500.0,0.00016438,2]
[424676996,1781043042000,-500.0,0.00016438,2]
[424676992,1781043042000,-500.0,0.00016438,2]
[424677013,1781043042000,-500.0,0.00016438,2]
[424676955,1781043042000,-500.0,0.00016438,2]
[424676979,1781043042000,-1028.41,0.00016438,2]
[424676957,1781043042000,-500.0,0.00016438,2]
[424676893,1781043042000,-645.85929236,0.00016438,2]
[424676953,1781043042000,-500.0,0.00016438,2]
[424676999,1781043042000,-500.0,0.00016438,2]
[424676890,1781043042000,-500.0,0.00016438,2]
[424676891,1781043042000,-500.0,0.00016438,2]
[424676898,1781043042000,-326.61768192,0.00016438,2]
[424676896,1781043042000,-500.0,0.00016438,2]
[424676900,1781043042000,-500.0,0.00016438,2]
[424676901,1781043042000,-500.0,0.00016438,2]
[424676903,1781043042000,-500.0,0.00016438,2]
[424676895,1781043042000,-500.0,0.00016438,2]
[424676902,1781043042000,-500.0,0.00016438,2]
[424676904,1781043042000,-500.0,0.00016438,2]
[424676911,1781043042000,-500.0,0.00016438,2]
[424676907,1781043042000,-1000.0,0.00016438,2]
[424676906,1781043042000,-500.0,0.00016438,2]
[424676905,1781043042000,-500.0,0.00016438,2]
[424676909,1781043042000,-500.0,0.00016438,2]
[424676924,1781043042000,-500.0,0.00016438,2]
[424676950,1781043042000,-500.0,0.00016438,2]
[424676951,1781043042000,-500.0,0.00016438,2]
[424676922,1781043042000,-500.0,0.00016438,2]
[424676934,1781043042000,-500.0,0.00016438,2]
[424676919,1781043042000,-500.0,0.00016438,2]
[424676936,1781043042000,-500.0,0.00016438,2]
[424676938,1781043042000,-500.0,0.00016438,2]
[424676921,1781043042000,-500.0,0.00016438,2]
[424676928,1781043042000,-500.0,0.00016438,2]
[424676930,1781043042000,-500.0,0.00016438,2]
[424676932,1781043042000,-500.0,0.00016438,2]
[424676915,1781043042000,-500.0,0.00016438,2]
[424676913,1781043042000,-500.0,0.00016438,2]
[424676926,1781043042000,-500.0,0.00016438,2]
[424676917,1781043042000,-500.0,0.00016438,2]
[424677003,1781043042000,-500.0,0.00016438,2]
[424677073,1781043042000,-500.0,0.00016438,2]
[424677007,1781043042000,-713.27,0.00016438,2]
[424677082,1781043042000,-1766.52,0.00016438,2]
[424677075,1781043042000,-500.0,0.00016438,2]
[424677085,1781043042000,-500.0,0.00016438,2]
[424677089,1781043042000,-500.0,0.00016438,2]
[424677087,1781043042000,-500.0,0.00016438,2]
[424677095,1781043042000,-613.19626374,0.00016438,2]
[424677091,1781043042000,-500.0,0.00016438,2]
[424677093,1781043042000,-500.0,0.00016438,2]
[424677098,1781043042000,-936.38,0.00016438,2]
[424677100,1781043042000,-500.0,0.00016438,2]
[424677096,1781043042000,-500.0,0.00016438,2]
[424677102,1781043042000,-500.0,0.00016438,2]
[424677104,1781043042000,-500.0,0.00016438,2]
[424677113,1781043042000,-500.0,0.00016438,2]
[424677079,1781043042000,-500.0,0.00016438,2]
[424677106,1781043042000,-500.0,0.00016438,2]
[424677112,1781043042000,-500.0,0.00016438,2]
[424677108,1781043042000,-500.0,0.00016438,2]
[424677110,1781043042000,-500.0,0.00016438,2]
[424677119,1781043042000,-500.0,0.00016438,2]
[424677117,1781043042000,-500.0,0.00016438,2]
[424677121,1781043042000,-1288.06,0.00016438,2]
[424677123,1781043042000,-500.0,0.00016438,2]
[424677129,1781043042000,-500.0,0.00016438,2]
[424677127,1781043042000,-1333.91,0.00016438,2]
[424677132,1781043042000,-500.0,0.00016438,2]
[424677130,1781043042000,-500.0,0.00016438,2]
[424677134,1781043042000,-500.0,0.00016438,2]
[424677138,1781043042000,-957.15,0.00016438,2]
[424677001,1781043042000,-343.88247245,0.00016438,2]
[424677115,1781043042000,-500.0,0.00016438,2]
[424677077,1781043042000,-500.0,0.00016438,2]
[424677125,1781043042000,-927.22,0.00016438,2]
[424677084,1781043042000,-500.0,0.00016438,2]
[424677136,1781043042000,-2640.01,0.00016438,2]
[424677015,1781043042000,-500.0,0.00016438,2]
[424677017,1781043042000,-500.0,0.00016438,2]
[424677020,1781043042000,-500.0,0.00016438,2]
[424677022,1781043042000,-500.0,0.00016438,2]
[424677036,1781043042000,-10206.52,0.00016438,2]
[424677038,1781043042000,-1253.34,0.00016438,2]
[424677040,1781043042000,-500.0,0.00016438,2]
[424677041,1781043042000,-500.0,0.00016438,2]
[424677032,1781043042000,-500.0,0.00016438,2]
[424677026,1781043042000,-500.0,0.00016438,2]
[424677030,1781043042000,-500.0,0.00016438,2]
[424677028,1781043042000,-500.0,0.00016438,2]
[424677034,1781043042000,-1221.11,0.00016438,2]
[424677043,1781043042000,-500.0,0.00016438,2]
[424677024,1781043042000,-500.0,0.00016438,2]
[424677045,1781043042000,-500.0,0.00016438,2]
[424677052,1781043042000,-500.0,0.00016438,2]
[424677080,1781043042000,-500.0,0.00016438,2]
[424677070,1781043042000,-1013.37,0.00016438,2]
[424677071,1781043042000,-268.93452315,0.00016438,2]
[424677062,1781043042000,-500.0,0.00016438,2]
[424677056,1781043042000,-500.0,0.00016438,2]
[424677060,1781043042000,-500.0,0.00016438,2]
[424677059,1781043042000,-307.05648815,0.00016438,2]
[424677064,1781043042000,-500.0,0.00016438,2]
[424677068,1781043042000,-500.0,0.00016438,2]
[424677066,1781043042000,-500.0,0.00016438,2]
[424677047,1781043042000,-500.0,0.00016438,2]
[424677050,1781043042000,-2518.41,0.00016438,2]
[424677054,1781043042000,-500.0,0.00016438,2]
[424677049,1781043042000,-500.0,0.00016438,2]
[424677214,1781043043000,-370.96030883,0.00016438,2]
[424677229,1781043043000,-766.89,0.00016438,2]
[424677226,1781043043000,-500.0,0.00016438,2]
[424677224,1781043043000,-500.0,0.00016438,2]
[424677222,1781043043000,-717.34,0.00016438,2]
[424677220,1781043043000,-500.0,0.00016438,2]
[424677235,1781043043000,-500.0,0.00016438,2]
[424677218,1781043043000,-500.0,0.00016438,2]
[424677233,1781043043000,-1592.36,0.00016438,2]
[424677231,1781043043000,-500.0,0.00016438,2]
[424677212,1781043043000,-500.0,0.00016438,2]
[424677228,1781043043000,-500.0,0.00016438,2]
[424677249,1781043043000,-500.0,0.00016438,2]
[424677241,1781043043000,-500.0,0.00016438,2]
[424677239,1781043043000,-634.56,0.00016438,2]
[424677243,1781043043000,-500.0,0.00016438,2]
[424677245,1781043043000,-500.0,0.00016438,2]
[424677247,1781043043000,-500.0,0.00016438,2]
[424677253,1781043043000,-657.67,0.00016438,2]
[424677251,1781043043000,-500.0,0.00016438,2]
[424677259,1781043043000,-500.0,0.00016438,2]
[424677254,1781043043000,-1185.65,0.00016438,2]
[424677216,1781043043000,-3267.51,0.00016438,2]
[424677257,1781043043000,-1240.17,0.00016438,2]
[424677237,1781043043000,-500.0,0.00016438,2]
[424677193,1781043043000,-500.0,0.00016438,2]
[424677158,1781043043000,-936.53710339,0.00016438,2]
[424677208,1781043043000,-500.0,0.00016438,2]
[424677260,1781043043000,-185.79469103,0.00016438,2]
[424677143,1781043043000,-500.0,0.00016438,2]
[424677145,1781043043000,-500.0,0.00016438,2]
[424677140,1781043043000,-500.0,0.00016438,2]
[424677142,1781043043000,-500.0,0.00016438,2]
[424677149,1781043043000,-500.0,0.00016438,2]
[424677147,1781043043000,-500.0,0.00016438,2]
[424677151,1781043043000,-500.0,0.00016438,2]
[424677153,1781043043000,-550.15,0.00016438,2]
[424677155,1781043043000,-2459.49,0.00016438,2]
[424677157,1781043043000,-500.0,0.00016438,2]
[424677183,1781043043000,-500.0,0.00016438,2]
[424677179,1781043043000,-849.77289661,0.00016438,2]
[424677181,1781043043000,-500.0,0.00016438,2]
[424677185,1781043043000,-500.0,0.00016438,2]
[424677195,1781043043000,-166.16928916,0.00016438,2]
[424677199,1781043043000,-500.0,0.00016438,2]
[424677197,1781043043000,-1939.16,0.00016438,2]
[424677201,1781043043000,-500.0,0.00016438,2]
[424677206,1781043043000,-699.9,0.00016438,2]
[424677203,1781043043000,-500.0,0.00016438,2]
[424677204,1781043043000,-500.0,0.00016438,2]
[424677187,1781043043000,-2629.36,0.00016438,2]
[424677191,1781043043000,-625.15,0.00016438,2]
[424677189,1781043043000,-500.0,0.00016438,2]
[424677210,1781043043000,-500.0,0.00016438,2]
[424677263,1781043043000,-151.0,0.00016438,2]
[424677275,1781043043000,-1253.22899373,0.00016544,2]
[424677270,1781043043000,-210.065,0.00016507,2]
[424677323,1781043043000,-500.0,0.00016712,2]
[424677325,1781043043000,-500.0,0.00016712,2]
[424677327,1781043043000,-500.0,0.00016712,2]
[424677331,1781043043000,-500.0,0.00016712,2]
[424677317,1781043043000,-500.0,0.00016712,2]
[424677336,1781043043000,-500.0,0.00016712,2]
[424677340,1781043043000,-500.0,0.00016712,2]
[424677346,1781043043000,-500.0,0.00016712,2]
[424677348,1781043043000,-668.56,0.00016712,2]
[424677350,1781043043000,-500.0,0.00016712,2]
[424677354,1781043043000,-151.0,0.00016712,2]
[424677356,1781043043000,-500.0,0.00016712,2]
[424677358,1781043043000,-151.0,0.00016712,2]
[424677352,1781043043000,-151.0,0.00016712,2]
[424677359,1781043043000,-500.0,0.00016712,2]
[424677362,1781043043000,-500.0,0.00016712,2]
[424677364,1781043043000,-500.0,0.00016712,2]
[424677366,1781043043000,-500.0,0.00016712,2]
[424677371,1781043043000,-605.39,0.00016712,2]
[424677369,1781043043000,-500.0,0.00016712,2]
[424677376,1781043043000,-500.0,0.00016712,2]
[424677374,1781043043000,-500.0,0.00016712,2]
[424677368,1781043043000,-500.0,0.00016712,2]
[424677377,1781043043000,-500.0,0.00016712,2]
[424677267,1781043043000,-1253.22899373,0.00016475,2]
[424677333,1781043043000,-606.99,0.00016712,2]
[424677329,1781043043000,-500.0,0.00016712,2]
[424677344,1781043043000,-500.0,0.00016712,2]
[424677319,1781043043000,-500.0,0.00016712,2]
[424677284,1781043043000,-168.03,0.000166,2]
[424677338,1781043043000,-500.0,0.00016712,2]
[424677273,1781043043000,-600.0,0.00016537,2]
[424677265,1781043043000,-164.14173832,0.00016444,2]
[424677282,1781043043000,-168.03,0.000166,2]
[424677281,1781043043000,-168.03,0.000166,2]
[424677286,1781043043000,-1253.22899373,0.00016612,2]
[424677279,1781043043000,-168.03,0.000166,2]
[424677288,1781043043000,-151.0,0.000167,2]
[424677304,1781043043000,-1042.0573,0.00016712,2]
[424677302,1781043043000,-752.5,0.00016712,2]
[424677306,1781043043000,-500.0,0.00016712,2]
[424677294,1781043043000,-500.0,0.00016712,2]
[424677277,1781043043000,-168.03,0.000166,2]
[424677321,1781043043000,-500.0,0.00016712,2]
[424677342,1781043043000,-239.0393251,0.00016712,2]
[424677296,1781043043000,-500.0,0.00016712,2]
[424677313,1781043043000,-500.0,0.00016712,2]
[424677311,1781043043000,-500.0,0.00016712,2]
[424677300,1781043043000,-500.0,0.00016712,2]
[424677315,1781043043000,-500.0,0.00016712,2]
[424677309,1781043043000,-500.0,0.00016712,2]
[424677290,1781043043000,-500.0,0.00016712,2]
[424677292,1781043043000,-500.0,0.00016712,2]
[424677298,1781043043000,-500.0,0.00016712,2]
[424677308,1781043043000,-500.0,0.00016712,2]
[424677455,1781043044000,-500.0,0.00016712,2]
[424677451,1781043044000,-500.0,0.00016712,2]
[424677453,1781043044000,-500.0,0.00016712,2]
[424677460,1781043044000,-500.0,0.00016712,2]
[424677443,1781043044000,-500.0,0.00016712,2]
[424677441,1781043044000,-500.0,0.00016712,2]
[424677447,1781043044000,-500.0,0.00016712,2]
[424677445,1781043044000,-500.0,0.00016712,2]
[424677432,1781043044000,-500.0,0.00016712,2]
[424677427,1781043044000,-684.17,0.00016712,2]
[424677457,1781043044000,-151.0,0.00016712,2]
[424677449,1781043044000,-500.0,0.00016712,2]
[424677459,1781043044000,-195.029033,0.00016712,2]
[424677489,1781043044000,-500.0,0.00016712,2]
[424677462,1781043044000,-500.0,0.00016712,2]
[424677472,1781043044000,-909.66579237,0.00016712,2]
[424677474,1781043044000,-500.0,0.00016712,2]
[424677478,1781043044000,-500.0,0.00016712,2]
[424677476,1781043044000,-500.0,0.00016712,2]
[424677480,1781043044000,-500.0,0.00016712,2]